bitfinex/quotes_SOLUSD_20260113
["timestamp","ask_amount","ask_price","bid_price","bid_amount"]
[1768310213334,3.89651254,141.88,141.84,7.72867931]
[1768310213518,0.15135368,141.87,141.84,7.04990711]
[1768310213830,3.33308961,141.87,141.84,7.04990711]
[1768310214028,0.15135368,141.87,141.84,7.72867931]
[1768310214234,3.33308961,141.87,141.84,7.72867931]
[1768310214538,0.15135368,141.87,141.84,7.72867931]
[1768310214712,3.18173593,141.87,141.84,7.72867931]
[1768310215535,3.89651254,141.88,141.84,7.72867931]
[1768310216544,0.15135368,141.87,141.84,7.04990711]
[1768310217947,0.15135368,141.87,141.84,7.72867931]
[1768310218115,0.15135368,141.87,141.84,7.04990711]
[1768310219348,10.23006261,141.88,141.85,0.6787722]
[1768310219522,10.38141629,141.88,141.85,0.6787722]
[1768310226960,7.19968036,141.88,141.85,0.6787722]
[1768310227131,10.38141629,141.88,141.85,0.6787722]
[1768310228059,3.3386675,141.86,141.83,0.65753091]
[1768310228562,0.70362027,141.85,141.81,10.89076746]
[1768310228730,3.18173593,141.83,141.81,0.65753091]
[1768310228934,0.16239846,141.84,141.81,0.65753091]
[1768310229245,3.18173593,141.83,141.81,0.65753091]
[1768310229445,10.23256542,141.83,141.81,0.65753091]
[1768310229645,3.18173593,141.83,141.81,0.65753091]
[1768310235264,7.21278677,141.84,141.81,0.65753091]
[1768310235442,10.3945227,141.84,141.81,0.65753091]
[1768310241469,10.93634903,141.83,141.78,10.23471795]
[1768310242162,3.88561673,141.8,141.77,0.2]
[1768310242368,3.85561674,141.8,141.78,0.66157695]
[1768310244365,10.93780217,141.81,141.78,0.66157695]
[1768310245568,7.05218544,141.81,141.78,0.66157695]
[1768310245754,7.05141127,141.82,141.79,0.66157695]
[1768310251773,7.75529207,141.82,141.79,0.66157695]
[1768310258482,10.937028,141.82,141.79,0.66157695]
[1768310260356,7.75529207,141.82,141.79,0.66157695]
[1768310263386,7.05141127,141.82,141.8,0.70612343]
[1768310264782,7.71384759,141.82,141.8,0.70612343]
[1768310267084,5.60141127,141.82,141.78,10.23489941]
[1768310267666,5.60141127,141.82,141.79,0.05480997]
[1768310271088,6.26384759,141.82,141.79,0.05480997]
[1768310271286,3.84417225,141.82,141.79,0.05480997]
[1768310272090,0.66243632,141.82,141.79,0.05480997]
[1768310273199,7.71387576,141.82,141.79,0.05480997]
[1768310274601,9.75162772,141.82,141.79,0.05480997]
[1768310274800,0.66243632,141.8,141.77,7.2534461]
[1768310274995,0.66243632,141.8,141.77,7.30825607]
[1768310275380,0.66243632,141.8,141.77,9.34600803]
[1768310281806,0.66243632,141.8,141.77,7.30825607]
[1768310281982,0.66243632,141.8,141.77,9.34600803]
[1768310287009,9.0891914,141.82,141.77,9.34600803]
[1768310287388,9.0891914,141.82,141.78,2.03775196]
[1768310288089,9.0891914,141.82,141.78,2.72385482]
[1768310288489,7.05143944,141.82,141.78,2.72385482]
[1768310288701,9.0891914,141.82,141.78,2.72385482]
[1768310289097,0.66369996,141.81,141.78,2.72385482]
[1768310289611,0.66369996,141.81,141.78,9.77692509]
[1768310290697,0.66369996,141.81,141.78,7.73917313]
[1768310291017,0.66369996,141.81,141.78,9.77692509]
[1768310292911,13.52369996,141.84,141.8,2.72385482]
[1768310293215,10.68513941,141.83,141.8,2.72385482]
[1768310293398,0.66369996,141.83,141.8,2.72385482]
[1768310295299,0.71244374,141.82,141.79,9.76119403]
[1768310309725,0.71244374,141.82,141.8,7.72320166]
[1768310310224,0.71244374,141.82,141.8,7.05211618]
[1768310311824,0.71244374,141.83,141.8,7.72320166]
[1768310313509,0.71244374,141.83,141.8,7.05211618]
[1768310315925,21.9481996,141.84,141.81,0.65625425]
[1768310315926,13.57143526,141.84,141.81,0.65625425]
[1768310316123,0.71143526,141.83,141.81,0.65625425]
[1768310316712,0.68143527,141.83,141.81,0.65625425]
[1768310317530,0.68143527,141.83,141.81,7.70747006]
[1768310317704,0.68143527,141.83,141.81,7.05121581]
[1768310318336,0.26652315,141.83,141.81,7.05121581]
[1768310319444,7.0494979,141.86,141.81,7.70747006]
[1768310319734,112.48663296,141.87,141.82,2.69400621]
[1768310319929,10.00183853,141.86,141.82,2.69400621]
[1768310320134,9.08663296,141.87,141.82,0.65625425]
[1768310320315,12.03876277,141.86,141.82,0.65625425]
[1768310320515,7.048881,141.87,141.82,7.70719887]
[1768310320728,12.03799377,141.86,141.82,7.70719887]
[1768310320930,2.03775196,141.86,141.82,7.70719887]
[1768310321451,0.71143526,141.85,141.82,7.70719887]
[1768310326829,2.74918722,141.85,141.82,7.70719887]
[1768310327028,0.71143526,141.83,141.8,0.65625425]
[1768310327232,0.71143526,141.83,141.8,7.70805809]
[1768310327938,0.71143526,141.83,141.81,0.65625425]
[1768310328341,0.71143526,141.83,141.8,7.70805809]
[1768310330539,0.71143526,141.85,141.81,0.65625425]
[1768310331441,2.74918722,141.85,141.81,0.65625425]
[1768310331642,0.71143526,141.85,141.82,7.7074459]
[1768310331829,2.74918722,141.85,141.82,7.7074459]
[1768310332027,0.71143526,141.84,141.82,7.7074459]
[1768310332434,0.71143526,141.82,141.79,7.70860358]
[1768310332722,2.03775196,141.84,141.78,0.65625425]
[1768310332723,2.74918722,141.81,141.78,0.65625425]
[1768310332937,0.71143526,141.81,141.78,0.65625425]
[1768310333249,2.74918722,141.81,141.78,0.65625425]
[1768310333547,3.89617874,141.81,141.78,0.65625425]
[1768310333844,3.89617874,141.81,141.78,7.70939205]
[1768310334033,3.89617874,141.79,141.77,0.2]
[1768310338154,0.71143526,141.79,141.77,0.2]
[1768310338357,3.89617874,141.79,141.77,0.2]
[1768310338948,3.89617874,141.78,141.77,0.2]
[1768310339138,0.68143524,141.78,141.77,0.2]
[1768310340122,3.18474348,141.79,141.77,0.2]
[1768310340647,3.18474348,141.78,141.77,0.2]
[1768310341250,3.89617874,141.78,141.77,0.2]
[1768310341750,0.71143526,141.79,141.77,0.2]
[1768310342053,0.71143526,141.78,141.76,0.2]
[1768310346457,3.89617874,141.78,141.76,0.2]
[1768310347463,0.62358433,141.77,141.76,0.2]
[1768310347642,0.51255675,141.76,141.74,16.23101535]
[1768310348040,0.51255675,141.76,141.74,15.5090078]
[1768310348451,0.51255675,141.76,141.74,16.23101535]
[1768310349770,3.69730023,141.76,141.74,14.88024612]
[1768310349986,10.75154096,141.76,141.74,14.88024612]
[1768310350670,3.69730023,141.76,141.74,14.88024612]
[1768310351561,3.69730023,141.76,141.73,7.97752185]
[1768310351562,3.59730023,141.75,141.73,0.2]
[1768310351766,3.49730023,141.74,141.73,0.1]
[1768310351974,3.18474348,141.76,141.73,0.1]
[1768310351975,10.33810224,141.76,141.73,0.1]
[1768310355765,7.05476965,141.75,141.73,0.1]
[1768310355966,10.23951313,141.75,141.73,0.1]
[1768310360549,3.18474348,141.74,141.73,0.1]
[1768310360970,10.23951313,141.75,141.73,0.76329568]
[1768310369879,7.05476965,141.75,141.73,0.76329568]
[1768310370082,10.23909853,141.76,141.73,0.76329568]
[1768310371264,10.45051971,141.76,141.73,0.76329568]
[1768310371573,10.23861931,141.77,141.74,0.66329568]
[1768310374484,10.23894982,141.76,141.74,0.66329568]
[1768310374686,10.33794982,141.76,141.72,0.2]
[1768310374983,3.18474348,141.73,141.71,0.2]
[1768310375174,3.18474348,141.72,141.71,0.2]
[1768310376185,0.22150443,141.74,141.71,0.2]
[1768310376388,3.18474348,141.72,141.71,0.2]
[1768310376763,3.18474348,141.72,141.71,0.90215035]
[1768310377668,3.18474348,141.72,141.7,0.90215035]
[1768310377891,3.18474348,141.73,141.71,0.70215035]
[1768310378189,10.2400425,141.74,141.71,0.70215035]
[1768310379375,7.05529902,141.74,141.71,0.70215035]
[1768310379574,10.2400425,141.74,141.71,0.70215035]
[1768310380493,3.18474348,141.74,141.72,0.70215035]
[1768310380795,3.18474348,141.74,141.72,0.64215037]
[1768310381677,23.81058447,141.75,141.7,7.25678876]
[1768310381879,0.28090441,141.74,141.7,7.25678876]
[1768310382294,23.11961922,141.75,141.7,7.25678876]
[1768310382479,23.40052363,141.75,141.7,7.25678876]
[1768310382677,23.40052363,141.75,141.71,0.70215035]
[1768310382878,0.68686464,141.74,141.71,0.70215035]
[1768310383082,3.87160812,141.74,141.71,0.70215035]
[1768310384791,3.18474348,141.74,141.71,0.70215035]
[1768310387186,10.2399476,141.74,141.71,0.70215035]
[1768310388088,10.2399476,141.74,141.7,0.90215035]
[1768310388089,3.87160812,141.73,141.7,0.90215035]
[1768310388288,0.28090441,141.73,141.7,0.90215035]
[1768310388594,3.46564789,141.73,141.7,0.90215035]
[1768310389193,10.52142573,141.73,141.7,0.90215035]
[1768310389592,10.52142573,141.73,141.7,0.2]
[1768310389797,10.93148657,141.73,141.7,0.90215035]
[1768310390096,0.28090441,141.72,141.7,0.2]
[1768310394197,0.48886464,141.71,141.69,0.2]
[1768310394385,7.05621997,141.72,141.69,0.90215035]
[1768310394578,7.05621997,141.72,141.69,0.2]
[1768310394785,3.18474348,141.73,141.69,0.2]
[1768310394985,3.18474348,141.73,141.7,0.70215035]
[1768310395393,2.04055618,141.73,141.7,0.70215035]
[1768310396791,9.09652496,141.73,141.7,0.70215035]
[1768310400796,7.05596878,141.73,141.7,0.70215035]
[1768310400999,7.05540744,141.74,141.7,0.70215035]
[1768310401310,9.09596362,141.74,141.7,0.70215035]
[1768310407694,7.05540744,141.74,141.7,0.70215035]
[1768310407896,9.09596362,141.74,141.7,0.70215035]
[1768310411216,9.09596362,141.74,141.71,0.69239408]
[1768310411718,9.19496362,141.74,141.71,0.69239408]
[1768310413916,7.05432556,141.76,141.72,0.69239408]
[1768310414091,7.30694906,141.75,141.72,0.69239408]
[1768310414415,2.04055618,141.75,141.72,0.69239408]
[1768310414717,5.26636837,141.74,141.72,0.69239408]
[1768310414915,2.04055618,141.75,141.72,0.69239408]
[1768310415213,5.2663727,141.74,141.72,0.69239408]
[1768310415413,2.04055618,141.75,141.72,0.69239408]
[1768310415910,12.3220601,141.74,141.72,0.69239408]
[1768310416119,7.05468455,141.75,141.72,0.69239408]
[1768310416324,9.09524073,141.75,141.72,0.69239408]
[1768310416615,5.26720137,141.74,141.72,0.69239408]
[1768310416918,9.09524073,141.75,141.72,0.69239408]
[1768310417119,5.26721028,141.74,141.72,0.69239408]
[1768310417321,7.05468455,141.75,141.72,0.69239408]
[1768310417522,5.26802946,141.74,141.72,0.69239408]
[1768310417709,7.05468455,141.75,141.72,0.69239408]
[1768310417902,5.2680282,141.74,141.72,0.69239408]
[1768310418101,7.05468455,141.75,141.72,0.69239408]
[1768310418294,5.2680282,141.74,141.72,0.69239408]
[1768310418499,7.05468455,141.75,141.72,0.69239408]
[1768310418695,5.26898073,141.74,141.72,0.69239408]
[1768310418918,7.05468455,141.75,141.72,0.69239408]
[1768310419123,5.26898199,141.74,141.72,0.69239408]
[1768310419314,7.05468455,141.75,141.72,0.69239408]
[1768310419519,5.27013823,141.74,141.72,0.69239408]
[1768310419717,2.04055618,141.77,141.73,0.71140317]
[1768310419911,17.61557955,141.76,141.73,0.71140317]
[1768310420109,5.27018174,141.75,141.73,0.71140317]
[1768310420311,3.82018174,141.74,141.72,9.09662718]
[1768310420513,7.74825774,141.76,141.72,9.09662718]
[1768310420713,7.74825774,141.76,141.73,0.17247342]
[1768310421323,9.78881392,141.76,141.73,0.17247342]
[1768310425226,7.74825774,141.76,141.73,0.17247342]
[1768310425433,7.05428922,141.76,141.73,0.17247342]
[1768310428612,7.05428922,141.76,141.73,2.2130296]
[1768310428814,0.69396852,141.78,141.74,2.2130296]
[1768310429013,0.69396852,141.78,141.75,0.17247342]
[1768310429235,0.69396852,141.78,141.74,2.04055618]
[1768310429431,0.69396852,141.78,141.74,2.2130296]
[1768310430242,7.74736376,141.78,141.74,2.2130296]
[1768310431550,7.74736376,141.78,141.75,0.17247342]
[1768310432843,0.69396852,141.77,141.74,7.22760897]
[1768310433043,0.69396852,141.77,141.74,9.26816515]
[1768310433429,0.69396852,141.77,141.74,9.09569173]
[1768310437463,7.72066862,141.79,141.75,9.26758219]
[1768310437664,7.05290583,141.79,141.77,0.17247342]
[1768310437842,0.13507222,141.8,141.77,0.17247342]
[1768310438036,7.18730567,141.8,141.77,0.17247342]
[1768310438237,7.85506846,141.8,141.77,0.17247342]
[1768310442744,0.66776279,141.79,141.76,7.05392193]
[1768310448061,9.22786185,141.8,141.78,0.17247342]
[1768310448062,0.13507222,141.8,141.78,0.17247342]
[1768310448277,0.13507222,141.8,141.77,0.17247342]
[1768310448278,7.85509238,141.8,141.77,0.17247342]
[1768310448477,0.66776279,141.79,141.76,7.22628659]
[1768310452269,0.66776279,141.79,141.76,7.05381317]
[1768310455053,0.66776279,141.79,141.76,9.09436935]
[1768310455375,0.66776279,141.79,141.77,3.18439886]
[1768310455556,0.80283501,141.8,141.77,3.35687228]
[1768310455874,0.80283501,141.8,141.78,3.18439886]
[1768310456376,0.80283501,141.8,141.77,0.17247342]
[1768310456678,0.80283501,141.8,141.78,3.18439886]
[1768310457052,0.80283501,141.8,141.76,24.86172677]
[1768310457253,0.80283501,141.8,141.77,3.18439886]
[1768310457578,0.80283501,141.8,141.77,10.2379582]
[1768310460172,0.80283501,141.8,141.77,7.05355934]
[1768310460378,0.80283501,141.8,141.77,10.2379582]
[1768310467389,0.80283501,141.8,141.77,10.41043162]
[1768310469599,0.80283501,141.8,141.78,10.23746193]
[1768310470987,103.4,141.84,141.78,10.23746193]
[1768310470988,103.4,141.84,141.8,0.72141838]
[1768310471286,17.62492174,141.85,141.8,3.18439886]
[1768310471488,7.04990243,141.85,141.8,3.18439886]
[1768310471681,7.04990243,141.85,141.81,3.18439886]
[1768310472964,0.66298094,141.84,141.81,10.23605264]
[1768310473395,0.66298094,141.84,141.82,3.18439886]
[1768310474484,0.66298094,141.84,141.82,10.23550612]
[1768310476494,0.66298094,141.84,141.82,7.05110726]
[1768310478295,0.66298094,141.84,141.82,3.18439886]
[1768310479896,0.66109259,141.85,141.82,3.84436253]
[1768310480387,0.66109259,141.85,141.83,7.05069449]
[1768310481001,0.66109259,141.85,141.83,10.23509335]
[1768310481590,0.66109259,141.87,141.84,0.65996367]
[1768310481789,0.66109259,141.87,141.84,3.84436253]
[1768310482904,0.1,141.89,141.86,3.84436253]
[1768310483198,1e-08,141.89,141.87,0.65996367]
[1768310484401,1e-08,141.89,141.87,3.18439886]
[1768310484625,0.1,141.91,141.88,3.84436253]
[1768310484783,0.66109259,141.9,141.88,10.23216124]
[1768310485112,0.1,141.91,141.88,7.04776238]
[1768310485422,3.18439886,141.9,141.85,0.65996367]
[1768310485699,3.18439886,141.87,141.83,7.05036915]
[1768310486876,0.66109259,141.87,141.83,10.89473168]
[1768310487081,0.66109259,141.89,141.85,3.84436253]
[1768310487679,0.66109259,141.89,141.86,3.84436253]
[1768310489292,0.66109259,141.89,141.86,10.89341989]
[1768310490102,0.66109259,141.89,141.86,7.70902103]
[1768310490293,0.66109259,141.89,141.86,10.89341989]
[1768310490605,0.66109259,141.89,141.86,7.70902103]
[1768310490788,0.17472115,141.88,141.85,7.70946721]
[1768310491706,0.17472115,141.88,141.85,10.89386607]
[1768310492594,0.66109259,141.89,141.85,10.89386607]
[1768310493807,0.66109259,141.89,141.86,0.65996367]
[1768310495713,0.66109259,141.89,141.86,7.70885187]
[1768310496015,0.66109259,141.89,141.86,10.89325073]
[1768310496316,13.54878722,141.9,141.87,0.70606405]
[1768310498601,13.54878722,141.9,141.87,7.75461257]
[1768310498805,0.68878722,141.9,141.87,7.75461257]
[1768310500119,0.14730347,141.89,141.86,7.75507834]
[1768310500327,0.14730347,141.89,141.85,3.89046291]
[1768310500625,7.1951392,141.89,141.86,0.70606405]
[1768310501292,6.6951392,141.89,141.86,0.70606405]
[1768310502196,6.6951392,141.89,141.85,7.75571318]
[1768310502803,6.6951392,141.89,141.86,0.70606405]
[1768310503218,6.7941392,141.89,141.86,0.70606405]
[1768310503424,0.58536238,141.88,141.84,0.70606405]
[1768310503618,0.58536238,141.88,141.81,0.70606405]
[1768310503619,0.57582822,141.84,141.81,0.70606405]
[1768310503822,3.18439886,141.84,141.81,0.70606405]
[1768310504899,12.86,141.87,141.81,0.70606405]
[1768310505114,3.18439886,141.84,141.81,0.70606405]
[1768310507012,10.23465203,141.84,141.8,7.75795013]
[1768310507224,3.18439886,141.83,141.79,7.75864702]
[1768310507400,3.18439886,141.83,141.8,0.70606405]
[1768310507905,3.18439886,141.81,141.76,7.76003959]
[1768310508112,3.18439886,141.79,141.75,0.70606405]
[1768310508300,37.53751912,141.83,141.75,0.70606405]
[1768310508496,3.18439886,141.79,141.75,0.70606405]
[1768310508814,3.18439886,141.79,141.76,0.70606405]
[1768310513623,3.18439886,141.8,141.76,0.70606405]
[1768310514014,3.18439886,141.8,141.75,10.23900032]
[1768310514015,3.18439886,141.79,141.75,0.70606405]
[1768310514216,3.18439886,141.78,141.74,0.70606405]
[1768310514722,3.18439886,141.78,141.73,10.23975717]
[1768310515024,3.18439886,141.78,141.73,10.94582122]
[1768310515419,3.18439886,141.78,141.71,7.76242151]
[1768310515420,3.18439886,141.76,141.71,7.76242151]
[1768310515725,3.18439886,141.76,141.71,3.89046291]
[1768310516112,3.18439886,141.76,141.71,0.70606405]
[1768310516314,3.18439886,141.76,141.71,3.89046291]
[1768310516922,3.15439886,141.76,141.71,3.89046291]
[1768310517320,7.05417607,141.76,141.72,9.80157065]
[1768310520125,7.05417607,141.76,141.72,7.76218243]
[1768310520327,7.05417607,141.76,141.73,0.70606405]
[1768310521210,103.4,141.79,141.75,2.74545227]
[1768310521511,105.43938822,141.79,141.75,0.70606405]
[1768310522419,7.05333191,141.78,141.75,0.70606405]
[1768310523603,7.05333191,141.78,141.75,2.74545227]
[1768310524329,110.45290421,141.79,141.76,2.74545227]
[1768310524528,7.05290421,141.79,141.76,2.74545227]
[1768310525413,7.05218617,141.8,141.76,0.70606405]
[1768310529126,7.05218617,141.8,141.76,2.74545227]
[1768310529310,9.09157439,141.8,141.76,0.70606405]
[1768310530811,2.03938822,141.79,141.75,0.6839363]
[1768310531330,2.03938822,141.77,141.74,0.6839363]
[1768310532226,24.68265161,141.8,141.74,0.6839363]
[1768310532418,14.91938822,141.78,141.74,0.6839363]
[1768310533407,7.05367849,141.77,141.73,9.77891067]
[1768310534536,7.05367849,141.77,141.73,2.72332452]
[1768310536911,7.05367849,141.77,141.74,0.68364234]
[1768310537118,19.93330858,141.78,141.75,0.68364234]
[1768310537628,9.09177134,141.8,141.77,0.68364234]
[1768310537852,19.93238312,141.8,141.77,0.68364234]
[1768310538426,39.60223678,141.8,141.75,0.68364234]
[1768310538623,39.60223678,141.8,141.75,2.72303056]
[1768310539557,19.93238312,141.8,141.76,2.72303056]
[1768310540918,19.93238312,141.8,141.77,0.68364234]
[1768310541120,7.05238312,141.8,141.77,0.68364234]
[1768310544536,9.09177134,141.8,141.76,0.68364234]
[1768310544950,2.03938822,141.79,141.74,2.72303056]
[1768310545256,2.03938822,141.78,141.73,2.72303056]
[1768310545443,7.05367849,141.77,141.73,2.72303056]
[1768310545643,7.02367849,141.77,141.74,0.68364234]
[1768310549154,7.05324692,141.78,141.75,0.68364234]
[1768310549659,7.05324692,141.78,141.76,0.68364234]
[1768310550143,19.93280922,141.79,141.76,0.68364234]
[1768310550346,5.26194385,141.78,141.76,0.68364234]
[1768310550552,7.05280922,141.79,141.76,0.68364234]
[1768310550736,5.26233594,141.78,141.76,0.68364234]
[1768310550932,7.05280922,141.79,141.76,0.68364234]
[1768310551132,5.26110612,141.78,141.76,0.68364234]
[1768310551336,7.05280922,141.79,141.76,0.68364234]
[1768310551546,5.26552717,141.78,141.76,0.68364234]
[1768310551734,7.05280922,141.79,141.76,0.68364234]
[1768310551934,5.26533653,141.78,141.76,0.68364234]
[1768310552144,7.05280922,141.79,141.76,0.68364234]
[1768310552354,5.27022968,141.78,141.76,0.68364234]
[1768310552666,5.27022968,141.77,141.76,0.68364234]
[1768310555451,5.24022968,141.77,141.76,0.68364234]
[1768310557650,5.21022966,141.77,141.76,0.68364234]
[1768310558051,7.05280922,141.79,141.76,0.68364234]
[1768310559747,2.03938822,141.8,141.76,0.68364234]
[1768310559953,9.09166708,141.8,141.77,0.66669421]
[1768310560144,9.09166708,141.8,141.75,2.03938822]
[1768310560145,2.03938822,141.79,141.75,0.66669421]
[1768310561263,9.09222324,141.79,141.76,0.66669421]
[1768310561664,2.03938822,141.78,141.75,0.66669421]
[1768310563853,2.03938822,141.78,141.75,7.72128368]
[1768310564954,2.03938822,141.78,141.76,0.66669421]
[1768310566061,2.03938822,141.79,141.76,0.66669421]
[1768310567345,9.09226667,141.79,141.76,0.66669421]
[1768310569663,5.27285598,141.78,141.76,0.66669421]
[1768310569867,5.27285598,141.77,141.76,0.66669421]
[1768310570070,5.24285598,141.77,141.76,0.66669421]
[1768310572072,5.21285598,141.77,141.76,0.66669421]
[1768310573651,9.09226667,141.79,141.76,0.66669421]
[1768310576574,2.03938822,141.77,141.73,0.66669421]
[1768310576880,2.03938822,141.76,141.73,0.66669421]
[1768310578558,2.0093882,141.76,141.74,0.66669421]
[1768310579461,3.18684479,141.76,141.74,0.66669421]
[1768310584473,10.24104996,141.76,141.74,0.66669421]
[1768310584651,10.24104996,141.76,141.73,0.66669421]
[1768310591558,10.21104996,141.76,141.73,0.66669421]
[1768310594186,3.18684479,141.79,141.74,0.6893925]
[1768310594481,113.63909997,141.8,141.76,0.6893925]
[1768310594680,10.23909997,141.8,141.76,0.6893925]
[1768310595469,7.05176416,141.81,141.78,0.66101032]
[1768310595673,10.23860895,141.81,141.78,0.66101032]
[1768310595875,7.05176416,141.81,141.78,0.66101032]
[1768310596478,40.74710207,141.82,141.78,0.66101032]
[1768310596792,10.01944756,141.81,141.78,0.66101032]
[1768310597085,40.74710207,141.82,141.78,0.66101032]
[1768310597291,13.2062631,141.81,141.78,0.66101032]
[1768310597471,3.18684479,141.81,141.78,0.66101032]
[1768310598692,3.18684479,141.81,141.77,0.66101032]
[1768310601694,7.05199428,141.81,141.78,0.66101032]
[1768310614805,10.23883907,141.81,141.78,0.66101032]
[1768310617704,7.05199428,141.81,141.78,0.66101032]
[1768310617878,10.23883907,141.81,141.78,0.66101032]
[1768310620204,7.05199428,141.81,141.78,0.66101032]
[1768310637418,7.05199428,141.81,141.78,3.84785511]
[1768310638433,7.05199428,141.81,141.79,0.66869908]
[1768310638919,7.05199428,141.81,141.78,0.66869908]
[1768310640620,10.23883907,141.81,141.78,0.66869908]
[1768310641426,7.05199428,141.81,141.78,0.66869908]
[1768310645524,4.75100586,141.8,141.78,0.66869908]
[1768310645730,7.05199428,141.81,141.78,0.66869908]
[1768310646129,4.75100586,141.8,141.78,0.66869908]
[1768310646428,7.05199428,141.81,141.78,0.66869908]
[1768310646631,4.75117891,141.8,141.78,0.66869908]
[1768310646823,7.05199428,141.81,141.78,0.66869908]
[1768310647124,4.7511897,141.8,141.78,0.66869908]
[1768310647317,7.05199428,141.81,141.78,0.66869908]
[1768310647517,4.75137916,141.8,141.78,0.66869908]
[1768310647710,7.05199428,141.81,141.78,0.66869908]
[1768310647911,4.75137803,141.8,141.78,0.66869908]
[1768310648111,7.05199428,141.81,141.78,0.66869908]
[1768310648311,4.75139307,141.8,141.78,0.66869908]
[1768310648512,7.05199428,141.81,141.78,0.66869908]
[1768310648718,4.75159453,141.8,141.78,0.66869908]
[1768310648917,7.05199428,141.81,141.78,0.66869908]
[1768310649110,4.75161831,141.8,141.78,0.66869908]
[1768310649319,7.05199428,141.81,141.78,0.66869908]
[1768310650426,4.75257236,141.8,141.78,0.66869908]
[1768310650613,7.05199428,141.81,141.78,0.66869908]
[1768310650810,4.75256845,141.8,141.78,0.66869908]
[1768310651011,7.05199428,141.81,141.78,0.66869908]
[1768310651310,4.75220846,141.8,141.78,0.66869908]
[1768310651511,7.05199428,141.81,141.78,0.66869908]
[1768310651713,4.7525633,141.8,141.78,0.66869908]
[1768310651914,7.05199428,141.81,141.78,0.66869908]
[1768310652114,4.75257714,141.8,141.78,0.66869908]
[1768310652314,7.05199428,141.81,141.78,0.66869908]
[1768310652620,4.75238908,141.8,141.78,0.66869908]
[1768310652827,7.05199428,141.81,141.78,0.66869908]
[1768310653027,4.75221261,141.8,141.78,0.66869908]
[1768310653329,7.05199428,141.81,141.78,0.66869908]
[1768310653522,4.75239183,141.8,141.78,0.66869908]
[1768310653724,7.05199428,141.81,141.78,0.66869908]
[1768310653927,4.75256943,141.8,141.78,0.66869908]
[1768310654125,7.05199428,141.81,141.78,0.66869908]
[1768310654323,4.75256703,141.8,141.78,0.66869908]
[1768310654520,7.05199428,141.81,141.78,0.66869908]
[1768310654756,4.75257012,141.8,141.78,0.66869908]
[1768310655024,7.05199428,141.81,141.78,0.66869908]
[1768310655226,4.75256909,141.8,141.78,0.66869908]
[1768310655424,7.05199428,141.81,141.78,0.66869908]
[1768310655725,4.75257266,141.8,141.78,0.66869908]
[1768310655925,7.05199428,141.81,141.78,0.66869908]
[1768310656138,4.75255995,141.8,141.78,0.66869908]
[1768310656436,7.05199428,141.81,141.78,0.66869908]
[1768310656637,4.75256349,141.8,141.78,0.66869908]
[1768310656832,7.05199428,141.81,141.78,0.66869908]
[1768310657032,4.75256462,141.8,141.78,0.66869908]
[1768310657225,7.05199428,141.81,141.78,0.66869908]
[1768310657426,4.75244693,141.8,141.78,0.66869908]
[1768310657626,7.05199428,141.81,141.78,0.66869908]
[1768310661040,7.05199428,141.81,141.78,2.70669709]
[1768310662946,7.05199428,141.81,141.78,0.66869908]
[1768310674454,7.05199428,141.81,141.78,0.67832137]
[1768310675944,9.08918966,141.82,141.78,0.67832137]
[1768310676143,10.02897279,141.81,141.78,0.67832137]
[1768310676441,9.08918966,141.82,141.78,0.67832137]
[1768310676640,10.02895773,141.81,141.78,0.67832137]
[1768310676842,7.05119165,141.82,141.78,0.67832137]
[1768310677060,4.7506005,141.81,141.78,0.67832137]
[1768310677360,9.08918966,141.82,141.78,0.68348822]
[1768310677554,4.750516,141.81,141.78,0.68348822]
[1768310677745,9.08918966,141.82,141.78,0.68348822]
[1768310677944,17.08047104,141.81,141.78,0.68348822]
[1768310678145,4.750516,141.8,141.78,0.68348822]
[1768310678348,7.05178637,141.81,141.78,0.68348822]
[1768310678349,9.08978438,141.81,141.78,0.68348822]
[1768310678545,6.7881229,141.8,141.78,0.68348822]
[1768310678744,6.7881229,141.8,141.75,0.68348822]
[1768310678745,12.06488594,141.79,141.75,0.68348822]
[1768310679061,2.03799801,141.76,141.73,0.68348822]
[1768310679360,2.03799801,141.77,141.73,0.68348822]
[1768310680046,9.09217408,141.76,141.73,0.68348822]
[1768310680951,7.05417607,141.76,141.73,0.68348822]
[1768310683664,9.09177505,141.77,141.73,0.68348822]
[1768310683862,2.03799801,141.78,141.74,0.68348822]
[1768310684971,9.09142892,141.78,141.74,0.68348822]
[1768310688166,7.05343091,141.78,141.75,0.68348822]
[1768310690661,9.09142892,141.78,141.75,0.68348822]
[1768310691058,7.05343091,141.78,141.75,0.68348822]
[1768310691258,19.93289909,141.79,141.75,0.68348822]
[1768310691463,21.9708971,141.79,141.75,0.68348822]
[1768310691779,19.93289909,141.79,141.75,0.68348822]
[1768310692152,21.9708971,141.79,141.75,0.68348822]
[1768310692355,110.45251822,141.8,141.77,0.68348822]
[1768310697062,7.05251822,141.8,141.77,0.68348822]
[1768310700374,7.051799,141.81,141.78,0.68348822]
[1768310702094,10.23583965,141.81,141.77,0.68348822]
[1768310702303,3.18404065,141.8,141.76,0.68348822]
[1768310702488,3.18404065,141.77,141.73,0.68348822]
[1768310702670,3.18404065,141.76,141.72,0.68348822]